fUST/lending_fUST_20250716
["ID","MTS","AMOUNT","RATE_DAILY","PERIOD"]
[372459618,1752651045061,-460.0,0.00019726,2]
[372459619,1752651045073,-460.0,0.00019726,2]
[372459620,1752651045083,-1189.86,0.00019726,2]
[372459621,1752651045093,-180.41,0.00019726,2]
[372459622,1752651045103,-460.0,0.00019726,2]
[372459623,1752651045113,-460.0,0.00019726,2]
[372459624,1752651045123,-460.0,0.00019726,2]
[372459625,1752651045132,-483.93,0.00019726,2]
[372459626,1752651045142,-460.0,0.00019726,2]
[372459627,1752651045152,-460.0,0.00019726,2]
[372459628,1752651045162,-460.0,0.00019726,2]
[372459629,1752651045171,-460.0,0.00019726,2]
[372459630,1752651045182,-460.0,0.00019726,2]
[372459631,1752651045192,-881.34,0.00019726,2]
[372459632,1752651045203,-460.0,0.00019726,2]
[372459633,1752651045212,-460.0,0.00019726,2]
[372459634,1752651045222,-848.06,0.00019726,2]
[372459635,1752651045232,-974.87,0.00019726,2]
[372459636,1752651045241,-460.0,0.00019726,2]
[372459637,1752651045251,-1800.72,0.00019726,2]
[372459638,1752651045261,-744.66,0.00019726,2]
[372459639,1752651045270,-460.0,0.00019726,2]
[372459640,1752651045279,-460.0,0.00019726,2]
[372459641,1752651045289,-3127.46,0.00019726,2]
[372459642,1752651045298,-460.0,0.00019726,2]
[372459643,1752651045308,-460.0,0.00019726,2]
[372459644,1752651045317,-460.0,0.00019726,2]
[372459645,1752651045327,-460.0,0.00019726,2]
[372459646,1752651045337,-460.0,0.00019726,2]
[372459647,1752651045346,-460.0,0.00019726,2]
[372459648,1752651045356,-460.0,0.00019726,2]
[372459649,1752651045365,-460.0,0.00019726,2]
[372459650,1752651045374,-498.01,0.00019726,2]
[372459651,1752651045384,-460.0,0.00019726,2]
[372459652,1752651045394,-152.29115071,0.00019726,2]
[372459653,1752651045404,-460.0,0.00019726,2]
[372459654,1752651045414,-2273.68158719,0.0001996,2]
[372459655,1752651045424,-465.88780789,0.00019999,2]
[372459656,1752651045433,-460.0,0.00019999,2]
[372459657,1752651045443,-460.0,0.00019999,2]
[372459658,1752651045453,-460.0,0.00019999,2]
[372459659,1752651045463,-460.0,0.00019999,2]
[372459660,1752651045472,-460.0,0.00019999,2]
[372459661,1752651045482,-460.0,0.00019999,2]
[372459662,1752651045491,-460.0,0.00019999,2]
[372459663,1752651045502,-460.0,0.00019999,2]
[372459664,1752651045511,-451.90628207,0.00019999,2]
[372459665,1752651045522,-460.0,0.00019999,2]
[372459666,1752651045531,-293.278932,0.0002,2]
[372459667,1752651045541,-500.0,0.0002,2]
[372459668,1752651045551,-151.0,0.0002,2]
[372459669,1752651045560,-200.93861572,0.0002,2]
[372459670,1752651045570,-151.0,0.0002,2]
[372459671,1752651045580,-500.0,0.0002,2]
[372459672,1752651045590,-500.0,0.0002,2]
[372459673,1752651045600,-500.0,0.0002,2]
[372459674,1752651045609,-500.0,0.0002,2]
[372459675,1752651045618,-500.0,0.0002,2]
[372459676,1752651045628,-151.79719452,0.0002,2]
[372459677,1752651045637,-151.0,0.0002,2]
[372459678,1752651045646,-151.0,0.0002,2]
[372459679,1752651045656,-460.0,0.0002,2]
[372459680,1752651045665,-460.0,0.0002,2]
[372459681,1752651045674,-460.0,0.0002,2]
[372459682,1752651045684,-460.0,0.0002,2]
[372459683,1752651045694,-460.0,0.0002,2]
[372459684,1752651045703,-460.0,0.0002,2]
[372459685,1752651045712,-460.0,0.0002,2]
[372459686,1752651045721,-575.6139442,0.0002,2]
[372459687,1752651045731,-460.0,0.0002,2]
[372459688,1752651045740,-460.0,0.0002,2]
[372459690,1752651045750,-460.0,0.0002,2]
[372459692,1752651045759,-460.0,0.0002,2]
[372459694,1752651045768,-460.0,0.0002,2]
[372459697,1752651045778,-221.13969605,0.0002,2]
[372459699,1752651045798,-460.0,0.0002,2]
[372459700,1752651045808,-460.0,0.0002,2]
[372459701,1752651045818,-460.0,0.0002,2]
[372459702,1752651045828,-460.0,0.0002,2]
[372459703,1752651045838,-532.71651424,0.0002,2]
[372459704,1752651045848,-460.0,0.0002,2]
[372459705,1752651045858,-523.06589888,0.0002,2]
[372459706,1752651045868,-460.0,0.0002,2]
[372459707,1752651045878,-460.0,0.0002,2]
[372459708,1752651045888,-1514.14,0.0002,2]
[372459709,1752651045897,-460.0,0.0002,2]
[372459710,1752651045907,-517.5255884,0.0002,2]
[372459711,1752651045916,-468.0724654,0.0002,2]
[372459712,1752651045926,-359.01659589,0.0002,2]
[372459713,1752651045936,-460.0,0.0002,2]
[372459714,1752651045946,-460.0,0.0002,2]
[372459715,1752651045955,-460.0,0.0002,2]
[372459716,1752651045965,-686.11,0.0002,2]
[372459717,1752651045975,-460.0,0.0002,2]
[372459718,1752651045986,-460.0,0.0002,2]
[372459719,1752651045999,-460.0,0.0002,2]
[372459720,1752651046009,-3082.45,0.0002,2]
[372459721,1752651046019,-460.0,0.0002,2]
[372459722,1752651046029,-460.0,0.0002,2]
[372459723,1752651046039,-1189.86,0.0002,2]
[372459724,1752651046049,-460.0,0.0002,2]
[372459725,1752651046059,-460.0,0.0002,2]
[372459726,1752651046070,-460.0,0.0002,2]
[372459727,1752651046080,-467.49544061,0.0002,2]
[372459728,1752651046089,-461.17647888,0.0002,2]
[372459729,1752651046099,-460.0,0.0002,2]
[372459730,1752651046109,-881.34,0.0002,2]
[372459731,1752651046119,-1293.99017771,0.0002,5]
[372459732,1752651046128,-460.0,0.0002,2]
[372459733,1752651046138,-460.0,0.0002,2]
[372459734,1752651046148,-848.06,0.0002,2]
[372459735,1752651046158,-974.87,0.0002,2]
[372459736,1752651046297,-460.0,0.0002,2]
[372459737,1752651046308,-1800.72,0.0002,2]
[372459738,1752651046318,-744.66,0.0002,2]
[372459739,1752651046328,-379.49954319,0.0002,2]
[372459740,1752651046337,-3127.46,0.0002,2]
[372459741,1752651046347,-460.0,0.0002,2]
[372459742,1752651046361,-460.0,0.0002,2]
[372459743,1752651046370,-460.0,0.0002,2]
[372459744,1752651046380,-470.71915391,0.0002,2]
[372459745,1752651046391,-460.0,0.0002,2]
[372459746,1752651046400,-460.0,0.0002,2]
[372459747,1752651046410,-498.01,0.0002,2]
[372459748,1752651046419,-460.0,0.0002,2]
[372459749,1752651046429,-268.5902745,0.00020021,2]
[372459750,1752651046438,-508.87138364,0.00020021,2]
[372459751,1752651046448,-390.285167,0.00020187,2]
[372459752,1752651046458,-460.0,0.00020273,2]
[372459753,1752651046467,-460.0,0.00020273,2]
[372459754,1752651046477,-460.0,0.00020273,2]
[372459755,1752651046486,-460.0,0.00020273,2]
[372459756,1752651046496,-248.70335207,0.00020273,2]
[372459757,1752651046505,-460.0,0.00020273,2]
[372459758,1752651046515,-460.0,0.00020273,2]
[372459759,1752651046525,-553.48507504,0.00020273,2]
[372459760,1752651046534,-460.0,0.00020273,2]
[372459761,1752651046544,-460.0,0.00020273,2]
[372459762,1752651046553,-460.0,0.00020273,2]
[372459763,1752651046563,-460.0,0.00020273,2]
[372459764,1752651046573,-460.0,0.00020273,2]
[372459765,1752651046582,-460.0,0.00020273,2]
[372459766,1752651046591,-534.96451204,0.00020273,2]
[372459767,1752651046601,-460.0,0.00020273,2]
[372459768,1752651046611,-347.37802397,0.00020273,2]
[372459769,1752651046621,-460.0,0.00020273,2]
[372459770,1752651046630,-460.0,0.00020273,2]
[372459771,1752651046640,-460.0,0.00020273,2]
[372459772,1752651046649,-1514.14,0.00020273,2]
[372459773,1752651046659,-250.51,0.00020273,2]
[372459774,1752651046668,-460.0,0.00020273,2]
[372459775,1752651046678,-460.0,0.00020273,2]
[372459776,1752651046689,-460.0,0.00020273,2]
[372459777,1752651046698,-686.11,0.00020273,2]
[372459778,1752651046709,-460.0,0.00020273,2]
[372459779,1752651046718,-460.0,0.00020273,2]
[372459780,1752651046729,-3082.45,0.00020273,2]
[372459781,1752651046739,-460.0,0.00020273,2]
[372459782,1752651046749,-460.0,0.00020273,2]
[372459783,1752651046760,-1189.86,0.00020273,2]
[372459784,1752651046770,-460.0,0.00020273,2]
[372459785,1752651046780,-460.0,0.00020273,2]
[372459786,1752651046792,-460.0,0.00020273,2]
[372459787,1752651046802,-881.34,0.00020273,2]
[372459788,1752651046814,-533.89096883,0.00020273,2]
[372459789,1752651046824,-848.06,0.00020273,2]
[372459790,1752651046834,-974.87,0.00020273,2]
[372459791,1752651046845,-275.01,0.00020273,2]
[372459792,1752651046856,-460.0,0.00020273,2]
[372459794,1752651046866,-1800.72,0.00020273,2]
[372459796,1752651046876,-744.66,0.00020273,2]
[372459797,1752651046888,-3127.46,0.00020273,2]
[372459798,1752651046903,-460.0,0.00020273,2]
[372459799,1752651046920,-460.0,0.00020273,2]
[372459800,1752651046930,-460.0,0.00020273,2]
[372459801,1752651046940,-460.0,0.00020273,2]
[372459802,1752651046950,-498.01,0.00020273,2]
[372459803,1752651046960,-460.0,0.00020273,2]
[372459804,1752651046970,-500.0,0.00020274,2]
[372459805,1752651046979,-247.68461556,0.00020274,2]
[372459806,1752651046992,-151.0,0.00020274,2]
[372459807,1752651047002,-500.0,0.00020274,2]
[372459808,1752651047012,-500.0,0.00020274,2]
[372459809,1752651047021,-500.0,0.00020274,2]
[372459810,1752651047032,-258.74690344,0.00020274,2]
[372459811,1752651047042,-500.0,0.00020274,2]
[372459812,1752651047052,-191.15759495,0.00020274,2]
[372459813,1752651047064,-153.31747799,0.00020274,2]
[372459814,1752651047074,-586.39,0.000203,2]
[372459815,1752651047084,-1779.37016772,0.00020342,2]
[372459816,1752651047093,-12605.49131908,0.00020447,3]
[372459817,1752651047103,-2096.17870402,0.00020452,2]
[372459818,1752651047112,-160.0,0.00020454,2]
[372459819,1752651047122,-1303.16,0.000205,2]
[372459820,1752651047132,-230.8109288,0.00020536,2]
[372459821,1752651047141,-160.0,0.00020536,2]
[372459822,1752651047151,-215.5496034,0.00020536,2]
[372459823,1752651047162,-468.75,0.00020536,2]
[372459824,1752651047171,-160.0,0.00020536,2]
[372459825,1752651047181,-520.85416667,0.00020536,2]
[372459826,1752651047191,-160.0,0.00020536,2]
[372459827,1752651047201,-160.0,0.00020536,2]
[372459828,1752651047211,-160.0,0.00020536,2]
[372459830,1752651047222,-838.99048831,0.00020537,2]
[372459832,1752651047233,-346.44,0.00020538,3]
[372459834,1752651047243,-460.0,0.00020547,2]
[372459836,1752651047253,-460.0,0.00020547,2]
[372459838,1752651047263,-460.0,0.00020547,2]
[372459840,1752651047273,-460.0,0.00020547,2]
[372459842,1752651047283,-460.0,0.00020547,2]
[372459844,1752651047293,-460.0,0.00020547,2]
[372459846,1752651047303,-510.88966242,0.00020547,2]
[372459848,1752651047316,-471.21488851,0.00020547,2]
[372459851,1752651047326,-182.54891849,0.00020547,2]
[372459852,1752651047337,-261.46,0.00020547,2]
[372459855,1752651047347,-460.0,0.00020547,2]
[372459857,1752651047356,-460.0,0.00020547,2]
[372459859,1752651047366,-460.0,0.00020547,2]
[372459861,1752651047375,-460.0,0.00020547,2]
[372459863,1752651047385,-460.0,0.00020547,2]
[372459865,1752651047395,-1514.14,0.00020547,2]
[372459866,1752651047405,-460.0,0.00020547,2]
[372459868,1752651047415,-460.0,0.00020547,2]
[372459870,1752651047425,-686.11,0.00020547,2]
[372459872,1752651047436,-460.0,0.00020547,2]
[372459874,1752651047446,-460.0,0.00020547,2]
[372459876,1752651047457,-3082.45,0.00020547,2]
[372459878,1752651047467,-460.0,0.00020547,2]
[372459880,1752651047478,-460.0,0.00020547,2]
[372459882,1752651047488,-1189.86,0.00020547,2]
[372459884,1752651047497,-460.0,0.00020547,2]
[372459886,1752651047507,-460.0,0.00020547,2]
[372459888,1752651047517,-460.0,0.00020547,2]
[372459890,1752651047527,-881.34,0.00020547,2]
[372459892,1752651047536,-848.06,0.00020547,2]
[372459894,1752651047546,-974.87,0.00020547,2]
[372459896,1752651047556,-460.0,0.00020547,2]
[372459898,1752651047566,-1800.72,0.00020547,2]
[372459900,1752651047576,-744.66,0.00020547,2]
[372459902,1752651047586,-3127.46,0.00020547,2]
[372459904,1752651047596,-460.0,0.00020547,2]
[372459906,1752651047605,-460.0,0.00020547,2]
[372459908,1752651047615,-460.0,0.00020547,2]
[372459910,1752651047624,-460.0,0.00020547,2]
[372459912,1752651047634,-498.01,0.00020547,2]
[372459914,1752651047644,-460.0,0.00020547,2]
[372459917,1752651047654,-500.0,0.00020548,2]
[372459919,1752651047664,-181.53793141,0.00020548,2]
[372459921,1752651047673,-500.0,0.00020548,2]
[372459923,1752651047683,-500.0,0.00020548,2]
[372459925,1752651047692,-500.0,0.00020548,2]
[372459927,1752651047702,-500.0,0.00020548,2]
[372459929,1752651047711,-6552.40895527,0.00020739,2]
[372459931,1752651047721,-1680.0,0.00020791,2]
[372459933,1752651047730,-420.0,0.00020792,2]
[372459935,1752651047740,-460.0,0.00020821,2]
[372459937,1752651047749,-460.0,0.00020821,2]
[372459938,1752651047758,-460.0,0.00020821,2]
[372459941,1752651047768,-392.84992788,0.00020821,2]
[372459943,1752651047778,-460.0,0.00020821,2]
[372459944,1752651047788,-460.0,0.00020821,2]
[372459947,1752651047797,-460.0,0.00020821,2]
[372459949,1752651047807,-460.0,0.00020821,2]
[372459950,1752651047818,-460.0,0.00020821,2]
[372459951,1752651047827,-1514.14,0.00020821,2]
[372459952,1752651047837,-460.0,0.00020821,2]
[372459953,1752651047847,-460.0,0.00020821,2]
[372459954,1752651047857,-686.11,0.00020821,2]
[372459955,1752651047867,-460.0,0.00020821,2]
[372459956,1752651047877,-460.0,0.00020821,2]
[372459957,1752651047887,-3082.45,0.00020821,2]
[372459958,1752651047896,-460.0,0.00020821,2]
[372459959,1752651047906,-460.0,0.00020821,2]
[372459960,1752651047916,-1189.86,0.00020821,2]
[372459961,1752651047930,-460.0,0.00020821,2]
[372459962,1752651047940,-460.0,0.00020821,2]
[372459963,1752651047950,-881.34,0.00020821,2]
[372459964,1752651047960,-848.06,0.00020821,2]
[372459965,1752651047970,-974.87,0.00020821,2]
[372459966,1752651047980,-1800.72,0.00020821,2]
[372459967,1752651047990,-744.66,0.00020821,2]
[372459968,1752651048002,-3127.46,0.00020821,2]
[372459969,1752651048011,-460.0,0.00020821,2]
[372459970,1752651048021,-460.0,0.00020821,2]
[372459971,1752651048030,-460.0,0.00020821,2]
[372459972,1752651048041,-460.0,0.00020821,2]
[372459973,1752651048050,-498.01,0.00020821,2]
[372459974,1752651048060,-460.0,0.00020821,2]
[372459975,1752651048070,-500.0,0.00020822,2]
[372459976,1752651048081,-500.0,0.00020822,2]
[372459977,1752651048091,-500.0,0.00020822,2]
[372459978,1752651048100,-500.0,0.00020822,2]
[372459979,1752651048110,-500.0,0.00020822,2]
[372459980,1752651048120,-500.0,0.00020885,2]
[372459981,1752651048131,-249.84316173,0.000209,2]
[372459982,1752651048141,-1164.45303158,0.00020945,2]
[372459983,1752651048151,-500.0,0.00020973,2]
[372459984,1752651048161,-10000.0,0.00021,5]
[372459985,1752651048171,-3920.39356113,0.00021,2]
[372459986,1752651048180,-269.95567869,0.00021,2]
[372459987,1752651048190,-169.10995551,0.00021,10]
[372459988,1752651048201,-184792.66293396,0.00021,3]
[372459989,1752651048211,-780.0,0.00021,2]
[372459990,1752651048220,-260.0,0.00021002,2]
[372459991,1752651048230,-260.06,0.00021031,2]
[372459992,1752651048240,-460.0,0.00021095,2]
[372459993,1752651048250,-460.0,0.00021095,2]
[372459994,1752651048259,-286.29536758,0.00021095,2]
[372459995,1752651048269,-417.32278206,0.00021095,2]
[372459996,1752651048278,-228.96,0.00021095,2]
[372459997,1752651048288,-460.0,0.00021095,2]
[372459998,1752651048298,-460.0,0.00021095,2]
[372459999,1752651048307,-460.0,0.00021095,2]
[372460000,1752651048317,-330.26380105,0.00021095,2]
[372460001,1752651048328,-1514.14,0.00021095,2]
[372460002,1752651048338,-460.0,0.00021095,2]
[372460003,1752651048348,-460.0,0.00021095,2]
[372460004,1752651048357,-686.11,0.00021095,2]
[372460005,1752651048367,-460.0,0.00021095,2]
[372460006,1752651048376,-460.0,0.00021095,2]
[372460007,1752651048386,-3082.45,0.00021095,2]
[372460008,1752651048396,-460.0,0.00021095,2]
[372460009,1752651048406,-460.0,0.00021095,2]
[372460010,1752651048416,-1189.86,0.00021095,2]
[372460011,1752651048426,-460.0,0.00021095,2]
[372460012,1752651048436,-386.6537927,0.00021095,2]
[372460013,1752651048445,-881.34,0.00021095,2]
[372460014,1752651048459,-848.06,0.00021095,2]
[372460015,1752651048469,-974.87,0.00021095,2]
[372460016,1752651048479,-1800.72,0.00021095,2]
[372460017,1752651048489,-744.66,0.00021095,2]
[372460018,1752651048499,-3127.46,0.00021095,2]
[372460019,1752651048508,-460.0,0.00021095,2]
[372460020,1752651048518,-460.0,0.00021095,2]
[372460021,1752651048527,-460.0,0.00021095,2]
[372460022,1752651048537,-498.01,0.00021095,2]
[372460023,1752651048546,-460.0,0.00021095,2]
[372460024,1752651048555,-500.0,0.00021096,2]
[372460025,1752651048565,-500.0,0.00021096,2]
[372460026,1752651048575,-500.0,0.00021096,2]
[372460027,1752651048584,-287.24415917,0.00021096,2]
[372460028,1752651048599,-500.0,0.00021096,2]
[372460029,1752651048609,-21456.27,0.000211,2]
[372460030,1752651048618,-460.0,0.00021369,2]
[372460031,1752651048628,-460.0,0.00021369,2]
[372460032,1752651048637,-460.0,0.00021369,2]
[372460033,1752651048646,-460.0,0.00021369,2]
[372460034,1752651048656,-1514.14,0.00021369,2]
[372460035,1752651048665,-460.0,0.00021369,2]
[372460036,1752651048674,-460.0,0.00021369,2]
[372460037,1752651048688,-686.11,0.00021369,2]
[372460038,1752651048698,-460.0,0.00021369,2]
[372460039,1752651048708,-460.0,0.00021369,2]
[372460040,1752651048718,-3082.45,0.00021369,2]
[372460041,1752651048731,-460.0,0.00021369,2]
[372460042,1752651048741,-460.0,0.00021369,2]
[372460043,1752651048752,-1189.86,0.00021369,2]
[372460044,1752651048762,-460.0,0.00021369,2]
[372460045,1752651048773,-881.34,0.00021369,2]
[372460046,1752651048782,-848.06,0.00021369,2]
[372460047,1752651048792,-974.87,0.00021369,2]
[372460048,1752651048802,-1800.72,0.00021369,2]
[372460049,1752651048813,-744.66,0.00021369,2]
[372460050,1752651048823,-3127.46,0.00021369,2]
[372460051,1752651048833,-460.0,0.00021369,2]
[372460052,1752651048843,-469.14,0.00021369,2]
[372460053,1752651048853,-460.0,0.00021369,2]
[372460054,1752651048863,-498.01,0.00021369,2]
[372460055,1752651048873,-460.0,0.00021369,2]
[372460056,1752651048883,-500.0,0.0002137,2]
[372460057,1752651048894,-500.0,0.0002137,2]
[372460058,1752651049003,-500.0,0.0002137,2]
[372460059,1752651049014,-421.82089474,0.0002137,2]
[372460060,1752651049023,-1000.0,0.00021433,2]
[372460061,1752651049034,-460.0,0.00021499,2]
[372460062,1752651049044,-460.0,0.00021499,2]
[372460063,1752651049054,-460.0,0.00021499,2]
[372460064,1752651049065,-461.40727749,0.00021499,2]
[372460065,1752651049076,-460.0,0.00021499,2]
[372460066,1752651049086,-460.0,0.00021499,2]
[372460067,1752651049096,-460.0,0.00021499,2]
[372460068,1752651049106,-460.0,0.00021499,2]
[372460069,1752651049116,-460.0,0.00021499,2]
[372460070,1752651049125,-460.0,0.00021499,2]
[372460071,1752651049135,-460.0,0.00021499,2]
[372460072,1752651049145,-460.0,0.00021499,2]
[372460073,1752651049155,-460.0,0.00021499,2]
[372460074,1752651049165,-271.35874253,0.00021499,2]
[372460075,1752651049175,-640.7,0.00021499,2]
[372460076,1752651049186,-764.16,0.00021499,2]
[372460077,1752651049198,-461.88204527,0.00021499,2]
[372460078,1752651049208,-474.55,0.00021499,2]
[372460079,1752651049218,-1003.9999861,0.00021521,2]
[372460080,1752651049228,-360.0,0.0002155,2]
[372460081,1752651049239,-274.53,0.00021643,2]
[372460082,1752651049249,-405.213659,0.00021643,2]
[372460083,1752651049259,-405.213659,0.00021643,2]
[372460084,1752651049269,-460.0,0.00021643,2]
[372460085,1752651049278,-151.0,0.00021643,2]
[372460086,1752651049288,-151.0,0.00021643,2]
[372460087,1752651049298,-460.0,0.00021643,2]
[372460088,1752651049308,-460.0,0.00021643,2]
[372460089,1752651049320,-1514.14,0.00021643,2]
[372460090,1752651049330,-460.0,0.00021643,2]
[372460091,1752651049340,-460.0,0.00021643,2]
[372460092,1752651049350,-686.11,0.00021643,2]
[372460093,1752651049361,-152.81602447,0.00021643,2]
[372460094,1752651049371,-460.0,0.00021643,2]
[372460095,1752651049381,-3082.45,0.00021643,2]
[372460096,1752651049391,-460.0,0.00021643,2]
[372460097,1752651049402,-460.0,0.00021643,2]
[372460098,1752651049413,-1189.86,0.00021643,2]
[372460099,1752651049423,-460.0,0.00021643,2]
[372460100,1752651049434,-881.34,0.00021643,2]
[372460101,1752651049443,-848.06,0.00021643,2]
[372460102,1752651049453,-974.87,0.00021643,2]
[372460103,1752651049464,-1800.72,0.00021643,2]
[372460104,1752651049475,-744.66,0.00021643,2]
[372460105,1752651049484,-3127.46,0.00021643,2]
[372460106,1752651049495,-460.0,0.00021643,2]
[372460107,1752651049506,-460.0,0.00021643,2]
[372460108,1752651049516,-498.01,0.00021643,2]
[372460109,1752651049527,-460.0,0.00021643,2]
[372460110,1752651049537,-500.0,0.00021644,2]
[372460111,1752651049547,-307.16349487,0.00021644,2]
[372460112,1752651049557,-500.0,0.00021686,2]
[372460113,1752651049568,-460.0,0.00021773,2]
[372460114,1752651049578,-460.0,0.00021773,2]
[372460115,1752651049588,-548.40577261,0.00021773,2]
[372460116,1752651049598,-460.0,0.00021773,2]
[372460117,1752651049608,-460.0,0.00021773,2]
[372460118,1752651049618,-460.0,0.00021773,2]
[372460119,1752651049629,-461.05129043,0.00021773,2]
[372460120,1752651049639,-460.0,0.00021773,2]
[372460121,1752651049649,-460.0,0.00021773,2]
[372460122,1752651049659,-460.0,0.00021773,2]
[372460123,1752651049669,-640.7,0.00021773,2]
[372460124,1752651049679,-764.16,0.00021773,2]
[372460125,1752651049688,-474.55,0.00021773,2]
[372460126,1752651049698,-500.0,0.00021863,2]
[372460127,1752651049708,-151.0,0.000219,3]
[372460128,1752651049718,-460.0,0.00021917,2]
[372460129,1752651049727,-584.35,0.00021917,2]
[372460130,1752651049737,-460.0,0.00021917,2]
[372460131,1752651049749,-1514.14,0.00021917,2]
[372460132,1752651049759,-460.0,0.00021917,2]
[372460133,1752651049770,-460.0,0.00021917,2]
[372460134,1752651049780,-686.11,0.00021917,2]
[372460135,1752651049790,-460.0,0.00021917,2]
[372460136,1752651049800,-3082.45,0.00021917,2]
[372460137,1752651049810,-438.4946827,0.00021917,2]
[372460138,1752651049820,-460.0,0.00021917,2]
[372460139,1752651049830,-1189.86,0.00021917,2]
[372460140,1752651049840,-460.0,0.00021917,2]
[372460141,1752651049852,-881.34,0.00021917,2]
[372460142,1752651049862,-848.06,0.00021917,2]
[372460143,1752651049872,-974.87,0.00021917,2]
[372460144,1752651049882,-1800.72,0.00021917,2]
[372460145,1752651049892,-744.66,0.00021917,2]
[372460146,1752651049902,-3127.46,0.00021917,2]
[372460147,1752651049911,-460.0,0.00021917,2]
[372460148,1752651049921,-460.0,0.00021917,2]
[372460149,1752651049931,-498.01,0.00021917,2]
[372460150,1752651049941,-460.0,0.00021917,2]
[372460151,1752651049951,-500.0,0.00021918,2]
[372460152,1752651049961,-151.0,0.00021964,7]
[372460153,1752651049970,-500.0,0.00021964,2]
[372460154,1752651049982,-500.0,0.00021964,2]
[372460155,1752651049992,-151.0,0.00021964,2]
[372460156,1752651050006,-500.0,0.00021964,2]
[372460157,1752651050017,-151.0,0.00021964,2]
[372460158,1752651050026,-500.0,0.00021964,2]
[372460159,1752651050039,-151.0,0.00021964,2]
[372460160,1752651050049,-500.0,0.00021964,2]
[372460161,1752651050059,-180.95057785,0.00021964,2]
[372460162,1752651050069,-500.0,0.00021964,2]
[372460163,1752651050081,-500.0,0.00021964,2]
[372460164,1752651050092,-500.0,0.00021964,2]
[372460165,1752651050102,-500.0,0.00021964,2]
[372460166,1752651050111,-500.0,0.00021964,2]
[372460167,1752651050123,-207.4,0.00021964,2]
[372460168,1752651050134,-500.0,0.00021964,2]
[372460169,1752651050145,-500.0,0.00021964,2]
[372460170,1752651050156,-500.0,0.00021964,2]
[372460171,1752651050166,-500.0,0.00021964,2]
[372460172,1752651050175,-500.0,0.00021964,2]
[372460173,1752651050185,-500.0,0.00021964,2]
[372460174,1752651050196,-500.0,0.00021964,2]
[372460175,1752651050206,-1500.0,0.00021981,2]
[372460176,1752651050216,-17138.59,0.00022,7]
[372460177,1752651050226,-470.960462,0.00022047,2]
[372460178,1752651050236,-331.19088156,0.00022047,2]
[372460179,1752651050247,-461.81298123,0.00022047,2]
[372460180,1752651050258,-460.0,0.00022047,2]
[372460181,1752651050268,-460.0,0.00022047,2]
[372460182,1752651050278,-163.82703745,0.00022047,2]
[372460183,1752651050287,-640.7,0.00022047,2]
[372460184,1752651050298,-764.16,0.00022047,2]
[372460185,1752651050308,-474.55,0.00022047,2]
[372460186,1752651050319,-460.0,0.00022098,2]